[Event "Titled Tuesday Blitz February 15 Early 2022"]
[White "Singh, Ojasva"]
[Black "Gulatz, Maurice"]
[WhiteFideId "25681958"]
[BlackFideId "24642746"]
[WhiteElo "1741"]
[BlackElo "2150"]
[Result "1-0"]
[Round "09"]
[TimeControl "180+1"]
[Date "2022.02.15"]
[WhiteClock "0:03:02"]
[BlackClock "0:01:46"]

1. e4 {[%clk 0:03:00]}  e5 {[%clk 0:02:59]} 2. Nf3 {[%clk 0:03:00]}  Nc6 {[%clk 0:02:59]} 3. Bc4 {[%clk 0:02:59]}  Bc5 {[%clk 0:02:58]} 4. O-O {[%clk 0:03:00]}  Nf6 {[%clk 0:02:57]} 5. d4 {[%clk 0:03:00]}  exd4 {[%clk 0:02:47]} 6. e5 {[%clk 0:03:01]}  d5 {[%clk 0:02:33]} 7. exf6 {[%clk 0:03:01]}  dxc4 {[%clk 0:02:30]} 8. Re1+ {[%clk 0:03:02]}  Be6 {[%clk 0:02:26]} 9. Ng5 {[%clk 0:03:02]}  Qxf6 {[%clk 0:02:10]} 10. Nxe6 {[%clk 0:03:01]}  fxe6 {[%clk 0:02:08]} 11. Qh5+ {[%clk 0:03:02]}  g6 {[%clk 0:01:46]} 12. Qxc5 {[%clk 0:03:03]}  O-O-O {[%clk 0:01:46]} 13. Bg5 {[%clk 0:03:02]} 1-0


[Site "https://www.chess.com"]

[Event "Titled Tuesday Blitz February 15 Early 2022"]
[White "Sjugirov, Sanan"]
[Black "Rustemov, Alexander"]
[WhiteFideId "4189302"]
[BlackFideId "4119002"]
[WhiteElo "2602"]
[BlackElo "2807"]
[Result "1-0"]
[Round "09"]
[TimeControl "180+1"]
[Date "2022.02.15"]
[WhiteClock "0:00:26"]
[BlackClock "0:00:05"]

1. e4 {[%clk 0:03:00]}  e6 {[%clk 0:03:00]} 2. d4 {[%clk 0:03:00]}  d5 {[%clk 0:03:01]} 3. Nd2 {[%clk 0:02:59]}  c5 {[%clk 0:02:58]} 4. Ngf3 {[%clk 0:02:58]}  cxd4 {[%clk 0:02:56]} 5. Nxd4 {[%clk 0:02:57]}  Nc6 {[%clk 0:02:56]} 6. Nxc6 {[%clk 0:02:54]}  bxc6 {[%clk 0:02:56]} 7. Bd3 {[%clk 0:02:55]}  Nf6 {[%clk 0:02:55]} 8. O-O {[%clk 0:02:54]}  Be7 {[%clk 0:02:48]} 9. e5 {[%clk 0:02:49]}  Nd7 {[%clk 0:02:47]} 10. Qh5 {[%clk 0:02:48]}  Nc5 {[%clk 0:02:40]} 11. Nb3 {[%clk 0:02:43]}  Nxd3 {[%clk 0:02:37]} 12. cxd3 {[%clk 0:02:44]}  c5 {[%clk 0:02:33]} 13. Qg4 {[%clk 0:02:38]}  g5 {[%clk 0:01:36]} 14. Bd2 {[%clk 0:02:28]}  h5 {[%clk 0:01:33]} 15. Qg3 {[%clk 0:02:01]}  a5 {[%clk 0:01:31]} 16. Rac1 {[%clk 0:01:57]}  Qb6 {[%clk 0:01:29]} 17. Bxg5 {[%clk 0:01:41]}  Rg8 {[%clk 0:01:25]} 18. h4 {[%clk 0:01:40]}  a4 {[%clk 0:01:19]} 19. Nd2 {[%clk 0:01:35]}  Qxb2 {[%clk 0:01:18]} 20. Qf4 {[%clk 0:01:33]}  Bf8 {[%clk 0:00:35]} 21. Rb1 {[%clk 0:00:46]}  Qxa2 {[%clk 0:00:34]} 22. Rfc1 {[%clk 0:00:39]}  Bd7 {[%clk 0:00:32]} 23. Rb7 {[%clk 0:00:35]}  Rxg5 {[%clk 0:00:08]} 24. hxg5 {[%clk 0:00:35]}  a3 {[%clk 0:00:08]} 25. Rcb1 {[%clk 0:00:28]}  Bc6 {[%clk 0:00:05]} 26. Qxf7+ {[%clk 0:00:26]} 1-0


[Site "https://www.chess.com"]

[Event "Titled Tuesday Blitz February 15 Early 2022"]
[White "Soderstrom, Adrian"]
[Black "Begunov, Konstantin"]
[WhiteFideId "1745786"]
[BlackFideId "4118510"]
[WhiteElo "2107"]
[BlackElo "2262"]
[Result "1-0"]
[Round "09"]
[TimeControl "180+1"]
[Date "2022.02.15"]
[WhiteClock "0:02:09"]
[BlackClock "0:00:56"]

1. e4 {[%clk 0:03:00]}  c5 {[%clk 0:02:59]} 2. d4 {[%clk 0:02:59]}  cxd4 {[%clk 0:02:55]} 3. c3 {[%clk 0:03:00]}  Nf6 {[%clk 0:02:55]} 4. e5 {[%clk 0:02:58]}  Nd5 {[%clk 0:02:56]} 5. Nf3 {[%clk 0:02:58]}  Nc6 {[%clk 0:02:56]} 6. Bc4 {[%clk 0:02:58]}  Nb6 {[%clk 0:02:56]} 7. Bb3 {[%clk 0:02:59]}  d5 {[%clk 0:02:56]} 8. exd6 {[%clk 0:02:58]}  e6 {[%clk 0:02:57]} 9. cxd4 {[%clk 0:02:58]}  Bxd6 {[%clk 0:02:57]} 10. O-O {[%clk 0:02:55]}  Nb4 {[%clk 0:02:57]} 11. Nc3 {[%clk 0:02:52]}  O-O {[%clk 0:02:56]} 12. Bg5 {[%clk 0:02:51]}  Be7 {[%clk 0:02:53]} 13. Ne4 {[%clk 0:02:48]}  Bxg5 {[%clk 0:02:44]} 14. Nexg5 {[%clk 0:02:49]}  h6 {[%clk 0:02:44]} 15. Ne4 {[%clk 0:02:48]}  Bd7 {[%clk 0:02:42]} 16. Ne5 {[%clk 0:02:45]}  Bb5 {[%clk 0:02:41]} 17. Re1 {[%clk 0:02:42]}  Rc8 {[%clk 0:02:34]} 18. Re3 {[%clk 0:02:41]}  Nc4 {[%clk 0:02:30]} 19. Bxc4 {[%clk 0:02:21]}  Bxc4 {[%clk 0:02:00]} 20. Rg3 {[%clk 0:02:21]}  Bd5 {[%clk 0:01:41]} 21. Qg4 {[%clk 0:02:16]}  g6 {[%clk 0:01:09]} 22. Nxg6 {[%clk 0:02:13]}  f5 {[%clk 0:01:06]} 23. Ne7+ {[%clk 0:02:07]}  Kf7 {[%clk 0:01:03]} 24. Qh5+ {[%clk 0:02:08]}  Kxe7 {[%clk 0:01:00]} 25. Rg7+ {[%clk 0:02:08]}  Rf7 {[%clk 0:00:56]} 26. Qxf7# {[%clk 0:02:09]} 1-0


[Site "https://www.chess.com"]

[Event "Titled Tuesday Blitz February 15 Early 2022"]
[White "Sovetbekova, Nurai"]
[Black "Rosenberg, Evan S"]
[WhiteFideId "13801910"]
[BlackFideId "2019299"]
[WhiteElo "1545"]
[BlackElo "2344"]
[Result "1-0"]
[Round "09"]
[TimeControl "180+1"]
[Date "2022.02.15"]
[WhiteClock "0:00:10"]
[BlackClock "0:00:12"]

1. d4 {[%clk 0:03:00]}  Nf6 {[%clk 0:02:58]} 2. c4 {[%clk 0:03:00]}  e6 {[%clk 0:02:58]} 3. g3 {[%clk 0:03:00]}  c5 {[%clk 0:02:57]} 4. d5 {[%clk 0:02:58]}  exd5 {[%clk 0:02:54]} 5. cxd5 {[%clk 0:02:58]}  d6 {[%clk 0:02:54]} 6. Nc3 {[%clk 0:02:57]}  Be7 {[%clk 0:02:46]} 7. Bg2 {[%clk 0:02:57]}  O-O {[%clk 0:02:46]} 8. Nf3 {[%clk 0:02:56]}  Na6 {[%clk 0:02:22]} 9. O-O {[%clk 0:02:53]}  Nc7 {[%clk 0:02:20]} 10. Qd3 {[%clk 0:02:44]}  b5 {[%clk 0:02:12]} 11. Nxb5 {[%clk 0:02:24]}  Ba6 {[%clk 0:02:11]} 12. a4 {[%clk 0:02:24]}  Rb8 {[%clk 0:02:04]} 13. Bf4 {[%clk 0:02:08]}  Nxb5 {[%clk 0:02:02]} 14. axb5 {[%clk 0:02:08]}  Bxb5 {[%clk 0:02:03]} 15. Qd2 {[%clk 0:02:02]}  a6 {[%clk 0:01:58]} 16. Ng5 {[%clk 0:01:56]}  h6 {[%clk 0:01:55]} 17. Ne4 {[%clk 0:01:54]}  Nxe4 {[%clk 0:01:54]} 18. Bxe4 {[%clk 0:01:53]}  Bg5 {[%clk 0:01:44]} 19. Bxg5 {[%clk 0:01:27]}  Qxg5 {[%clk 0:01:45]} 20. f4 {[%clk 0:01:27]}  Qe7 {[%clk 0:01:28]} 21. Bd3 {[%clk 0:01:03]}  c4 {[%clk 0:01:10]} 22. Bc2 {[%clk 0:00:59]}  Rfe8 {[%clk 0:01:02]} 23. e4 {[%clk 0:00:39]}  c3 {[%clk 0:00:57]} 24. bxc3 {[%clk 0:00:39]}  Bxf1 {[%clk 0:00:58]} 25. Kxf1 {[%clk 0:00:38]}  Rb2 {[%clk 0:00:50]} 26. Qc1 {[%clk 0:00:28]}  Reb8 {[%clk 0:00:47]} 27. Rxa6 {[%clk 0:00:24]}  Qb7 {[%clk 0:00:36]} 28. Rxd6 {[%clk 0:00:18]}  Qb5+ {[%clk 0:00:36]} 29. Ke1 {[%clk 0:00:12]}  Qc5 {[%clk 0:00:35]} 30. Rc6 {[%clk 0:00:10]}  Qg1+ {[%clk 0:00:32]} 31. Kd2 {[%clk 0:00:10]}  Qf2+ {[%clk 0:00:27]} 32. Kd1 {[%clk 0:00:09]}  Qf1+ {[%clk 0:00:23]} 33. Kd2 {[%clk 0:00:09]}  Qg2+ {[%clk 0:00:15]} 34. Kd1 {[%clk 0:00:09]}  Qxh2 {[%clk 0:00:16]} 35. d6 {[%clk 0:00:06]}  Qg1+ {[%clk 0:00:13]} 36. Kd2 {[%clk 0:00:07]}  Qg2+ {[%clk 0:00:13]} 37. Kd1 {[%clk 0:00:07]}  Qf3+ {[%clk 0:00:13]} 38. Kd2 {[%clk 0:00:07]}  Qf2+ {[%clk 0:00:11]} 39. Kd1 {[%clk 0:00:07]}  Qxg3 {[%clk 0:00:09]} 40. d7 {[%clk 0:00:05]}  Qg1+ {[%clk 0:00:07]} 41. Kd2 {[%clk 0:00:06]}  Qh2+ {[%clk 0:00:07]} 42. Kd1 {[%clk 0:00:06]}  Qh5+ {[%clk 0:00:07]} 43. Kd2 {[%clk 0:00:03]}  Qh2+ {[%clk 0:00:07]} 44. Kd1 {[%clk 0:00:04]}  Qg1+ {[%clk 0:00:06]} 45. Kd2 {[%clk 0:00:03]}  Qf2+ {[%clk 0:00:07]} 46. Kd1 {[%clk 0:00:04]}  Qf1+ {[%clk 0:00:07]} 47. Kd2 {[%clk 0:00:04]}  Qxf4+ {[%clk 0:00:08]} 48. Kd1 {[%clk 0:00:04]}  Qf3+ {[%clk 0:00:07]} 49. Kd2 {[%clk 0:00:05]}  R2b7 {[%clk 0:00:06]} 50. Rc8+ {[%clk 0:00:04]}  Kh7 {[%clk 0:00:06]} 51. d8=Q {[%clk 0:00:05]}  Qf4+ {[%clk 0:00:04]} 52. Kd1 {[%clk 0:00:05]}  Qf1+ {[%clk 0:00:04]} 53. Kd2 {[%clk 0:00:05]}  Qf2+ {[%clk 0:00:04]} 54. Kd1 {[%clk 0:00:04]}  Rxc8 {[%clk 0:00:03]} 55. Qxc8 {[%clk 0:00:04]}  Re7 {[%clk 0:00:02]} 56. Qf5+ {[%clk 0:00:04]}  Qxf5 {[%clk 0:00:02]} 57. exf5 {[%clk 0:00:05]}  Rd7+ {[%clk 0:00:03]} 58. Ke2 {[%clk 0:00:05]}  Re7+ {[%clk 0:00:03]} 59. Kf2 {[%clk 0:00:06]}  f6 {[%clk 0:00:04]} 60. Qf4 {[%clk 0:00:07]}  Re5 {[%clk 0:00:05]} 61. Qxe5 {[%clk 0:00:07]}  fxe5 {[%clk 0:00:06]} 62. c4 {[%clk 0:00:07]}  Kg8 {[%clk 0:00:06]} 63. c5 {[%clk 0:00:08]}  Kf8 {[%clk 0:00:07]} 64. c6 {[%clk 0:00:09]}  Ke8 {[%clk 0:00:08]} 65. Be4 {[%clk 0:00:09]}  Kd8 {[%clk 0:00:08]} 66. Kf3 {[%clk 0:00:10]}  Kc7 {[%clk 0:00:09]} 67. Kg4 {[%clk 0:00:11]}  Kd6 {[%clk 0:00:09]} 68. Kh5 {[%clk 0:00:11]}  Ke7 {[%clk 0:00:09]} 69. Kg6 {[%clk 0:00:11]}  Kd6 {[%clk 0:00:09]} 70. Kxg7 {[%clk 0:00:10]}  h5 {[%clk 0:00:10]} 71. Kg6 {[%clk 0:00:10]}  h4 {[%clk 0:00:10]} 72. Kg5 {[%clk 0:00:10]}  h3 {[%clk 0:00:10]} 73. Kg4 {[%clk 0:00:10]}  h2 {[%clk 0:00:10]} 74. Kg3 {[%clk 0:00:10]}  h1=Q {[%clk 0:00:08]} 75. Bxh1 {[%clk 0:00:10]}  e4 {[%clk 0:00:09]} 76. Bxe4 {[%clk 0:00:10]}  Ke5 {[%clk 0:00:10]} 77. c7 {[%clk 0:00:10]}  Kxe4 {[%clk 0:00:11]} 78. c8=Q {[%clk 0:00:10]}  Ke5 {[%clk 0:00:12]} 79. Qe6+ {[%clk 0:00:10]}  Kd4 {[%clk 0:00:12]} 80. f6 {[%clk 0:00:10]} 1-0


[Site "https://www.chess.com"]

[Event "Titled Tuesday Blitz February 15 Early 2022"]
[White "Steenbekkers, Franck"]
[Black "Vine, Elzbieta"]
[WhiteFideId "1004220"]
[BlackFideId "1119320"]
[WhiteElo "2132"]
[BlackElo "1839"]
[Result "1-0"]
[Round "09"]
[TimeControl "180+1"]
[Date "2022.02.15"]
[WhiteClock "0:00:43"]
[BlackClock "0:00:17"]

1. e4 {[%clk 0:02:56]}  c5 {[%clk 0:02:58]} 2. Nf3 {[%clk 0:02:55]}  d6 {[%clk 0:02:56]} 3. d4 {[%clk 0:02:54]}  cxd4 {[%clk 0:02:56]} 4. Nxd4 {[%clk 0:02:55]}  Nf6 {[%clk 0:02:55]} 5. Nc3 {[%clk 0:02:55]}  a6 {[%clk 0:02:54]} 6. f4 {[%clk 0:02:54]}  b5 {[%clk 0:02:46]} 7. e5 {[%clk 0:02:15]}  dxe5 {[%clk 0:02:39]} 8. fxe5 {[%clk 0:02:11]}  Ng4 {[%clk 0:02:04]} 9. Bf4 {[%clk 0:01:53]}  b4 {[%clk 0:01:51]} 10. Ncb5 {[%clk 0:01:40]}  axb5 {[%clk 0:01:40]} 11. Bxb5+ {[%clk 0:01:36]}  Bd7 {[%clk 0:01:25]} 12. Qxg4 {[%clk 0:01:33]}  Bxb5 {[%clk 0:01:23]} 13. Nxb5 {[%clk 0:01:26]}  e6 {[%clk 0:01:04]} 14. Bg5 {[%clk 0:01:19]}  Qa5 {[%clk 0:00:56]} 15. Qc4 {[%clk 0:01:10]}  b3+ {[%clk 0:00:49]} 16. Ke2 {[%clk 0:01:02]}  Nd7 {[%clk 0:00:39]} 17. axb3 {[%clk 0:00:56]}  h6 {[%clk 0:00:25]} 18. Rxa5 {[%clk 0:00:44]}  Rxa5 {[%clk 0:00:17]} 19. Qc8# {[%clk 0:00:43]} 1-0


[Site "https://www.chess.com"]

[Event "Titled Tuesday Blitz February 15 Early 2022"]
[White "Stepanencu, Nicodim-Cosmin"]
[Black "Samaganova, Aleksandra"]
[WhiteFideId "1256220"]
[BlackFideId "13800221"]
[WhiteElo "1809"]
[BlackElo "1859"]
[Result "1-0"]
[Round "09"]
[TimeControl "180+1"]
[Date "2022.02.15"]
[WhiteClock "0:00:15"]
[BlackClock "0:00:16"]

1. b3 {[%clk 0:02:54]}  c5 {[%clk 0:02:58]} 2. Bb2 {[%clk 0:02:53]}  Nf6 {[%clk 0:02:58]} 3. e3 {[%clk 0:02:47]}  e6 {[%clk 0:02:53]} 4. c4 {[%clk 0:02:38]}  Nc6 {[%clk 0:02:51]} 5. Nf3 {[%clk 0:02:35]}  Be7 {[%clk 0:02:51]} 6. Be2 {[%clk 0:02:35]}  O-O {[%clk 0:02:50]} 7. O-O {[%clk 0:02:36]}  d5 {[%clk 0:02:49]} 8. cxd5 {[%clk 0:02:36]}  Nxd5 {[%clk 0:02:47]} 9. d3 {[%clk 0:02:31]}  b6 {[%clk 0:02:44]} 10. Nbd2 {[%clk 0:02:27]}  Bb7 {[%clk 0:02:43]} 11. Rc1 {[%clk 0:02:27]}  Bf6 {[%clk 0:02:38]} 12. Bxf6 {[%clk 0:02:22]}  Qxf6 {[%clk 0:02:37]} 13. Ne4 {[%clk 0:02:21]}  Qe7 {[%clk 0:02:37]} 14. Qc2 {[%clk 0:02:16]}  Rac8 {[%clk 0:02:34]} 15. Rfd1 {[%clk 0:02:15]}  Rfd8 {[%clk 0:02:33]} 16. Qb2 {[%clk 0:02:11]}  h6 {[%clk 0:02:30]} 17. a3 {[%clk 0:02:00]}  Rd7 {[%clk 0:02:18]} 18. Rc2 {[%clk 0:01:59]}  Rcd8 {[%clk 0:02:15]} 19. Rdc1 {[%clk 0:01:58]}  Na5 {[%clk 0:01:57]} 20. Ne5 {[%clk 0:01:44]}  Rc7 {[%clk 0:01:47]} 21. b4 {[%clk 0:00:56]}  cxb4 {[%clk 0:01:38]} 22. Rxc7 {[%clk 0:00:57]}  Nxc7 {[%clk 0:01:39]} 23. axb4 {[%clk 0:00:56]}  Bxe4 {[%clk 0:01:11]} 24. dxe4 {[%clk 0:00:57]}  Nb7 {[%clk 0:01:08]} 25. Nc6 {[%clk 0:00:57]}  Qe8 {[%clk 0:01:08]} 26. Nxd8 {[%clk 0:00:55]}  Qxd8 {[%clk 0:01:09]} 27. Qe5 {[%clk 0:00:46]}  Ne8 {[%clk 0:01:05]} 28. Qd4 {[%clk 0:00:37]}  Qxd4 {[%clk 0:00:55]} 29. exd4 {[%clk 0:00:38]}  Nbd6 {[%clk 0:00:56]} 30. f3 {[%clk 0:00:37]}  Kf8 {[%clk 0:00:50]} 31. Ba6 {[%clk 0:00:33]}  Ke7 {[%clk 0:00:48]} 32. g4 {[%clk 0:00:21]}  f6 {[%clk 0:00:48]} 33. e5 {[%clk 0:00:14]}  Nf7 {[%clk 0:00:39]} 34. f4 {[%clk 0:00:12]}  g5 {[%clk 0:00:37]} 35. Rc8 {[%clk 0:00:11]}  gxf4 {[%clk 0:00:30]} 36. Bb5 {[%clk 0:00:12]}  Ng7 {[%clk 0:00:28]} 37. Rc7+ {[%clk 0:00:12]}  Kf8 {[%clk 0:00:28]} 38. exf6 {[%clk 0:00:11]}  Ne8 {[%clk 0:00:25]} 39. Bxe8 {[%clk 0:00:10]}  Kxe8 {[%clk 0:00:25]} 40. Re7+ {[%clk 0:00:09]}  Kf8 {[%clk 0:00:25]} 41. Rxa7 {[%clk 0:00:07]}  Ng5 {[%clk 0:00:21]} 42. Rb7 {[%clk 0:00:07]}  Nf3+ {[%clk 0:00:21]} 43. Kf2 {[%clk 0:00:06]}  Nxd4 {[%clk 0:00:22]} 44. Rxb6 {[%clk 0:00:06]}  Kf7 {[%clk 0:00:22]} 45. Rd6 {[%clk 0:00:05]}  Nb5 {[%clk 0:00:17]} 46. Rb6 {[%clk 0:00:04]}  Nc3 {[%clk 0:00:17]} 47. Kf3 {[%clk 0:00:03]}  Kxf6 {[%clk 0:00:16]} 48. Rd6 {[%clk 0:00:02]}  Ke5 {[%clk 0:00:16]} 49. Rd3 {[%clk 0:00:02]}  Ne4 {[%clk 0:00:13]} 50. b5 {[%clk 0:00:02]}  Ng5+ {[%clk 0:00:13]} 51. Kf2 {[%clk 0:00:02]}  Ne4+ {[%clk 0:00:09]} 52. Kg2 {[%clk 0:00:03]}  Nc5 {[%clk 0:00:08]} 53. Rb3 {[%clk 0:00:03]}  Kd5 {[%clk 0:00:07]} 54. b6 {[%clk 0:00:04]}  Nb7 {[%clk 0:00:07]} 55. Rb4 {[%clk 0:00:03]}  e5 {[%clk 0:00:07]} 56. Kf3 {[%clk 0:00:04]}  Kc5 {[%clk 0:00:07]} 57. Rb1 {[%clk 0:00:04]}  Kd5 {[%clk 0:00:07]} 58. Rb5+ {[%clk 0:00:04]}  Kc6 {[%clk 0:00:07]} 59. Rxe5 {[%clk 0:00:04]}  Kxb6 {[%clk 0:00:06]} 60. Kxf4 {[%clk 0:00:05]}  Kc7 {[%clk 0:00:05]} 61. Re7+ {[%clk 0:00:05]}  Kc6 {[%clk 0:00:05]} 62. Rxb7 {[%clk 0:00:06]}  Kxb7 {[%clk 0:00:05]} 63. Kf5 {[%clk 0:00:07]}  Kc6 {[%clk 0:00:06]} 64. Kg6 {[%clk 0:00:07]}  Kd6 {[%clk 0:00:07]} 65. Kxh6 {[%clk 0:00:08]}  Ke6 {[%clk 0:00:07]} 66. g5 {[%clk 0:00:08]}  Kf7 {[%clk 0:00:08]} 67. Kh7 {[%clk 0:00:09]}  Ke6 {[%clk 0:00:08]} 68. g6 {[%clk 0:00:10]}  Kf5 {[%clk 0:00:09]} 69. g7 {[%clk 0:00:11]}  Kg5 {[%clk 0:00:10]} 70. g8=Q+ {[%clk 0:00:12]}  Kh5 {[%clk 0:00:11]} 71. Qg2 {[%clk 0:00:10]}  Kh4 {[%clk 0:00:12]} 72. Qg3+ {[%clk 0:00:10]}  Kh5 {[%clk 0:00:13]} 73. Qf3+ {[%clk 0:00:09]}  Kh4 {[%clk 0:00:13]} 74. h3 {[%clk 0:00:09]}  Kg5 {[%clk 0:00:12]} 75. Qg4+ {[%clk 0:00:10]}  Kf6 {[%clk 0:00:12]} 76. h4 {[%clk 0:00:11]}  Ke5 {[%clk 0:00:13]} 77. h5 {[%clk 0:00:12]}  Kf6 {[%clk 0:00:14]} 78. h6 {[%clk 0:00:12]}  Ke5 {[%clk 0:00:15]} 79. Kg8 {[%clk 0:00:13]}  Kf6 {[%clk 0:00:16]} 80. h7 {[%clk 0:00:14]}  Ke7 {[%clk 0:00:15]} 81. h8=Q {[%clk 0:00:15]}  Kd8 {[%clk 0:00:16]} 82. Qf6+ {[%clk 0:00:14]}  Kc7 {[%clk 0:00:16]} 83. Qgg7+ {[%clk 0:00:15]}  Kb8 {[%clk 0:00:16]} 84. Qff8# {[%clk 0:00:15]} 1-0


[Site "https://www.chess.com"]

[Event "Titled Tuesday Blitz February 15 Early 2022"]
[White "Sychev, Klementy"]
[Black "Eynullayev, Atilla"]
[WhiteFideId "4114060"]
[BlackFideId "13413570"]
[WhiteElo "2564"]
[BlackElo "1979"]
[Result "1-0"]
[Round "09"]
[TimeControl "180+1"]
[Date "2022.02.15"]
[WhiteClock "0:01:30"]
[BlackClock "0:00:40"]

1. e4 {[%clk 0:02:56]}  c5 {[%clk 0:02:58]} 2. b4 {[%clk 0:02:51]}  cxb4 {[%clk 0:02:56]} 3. a3 {[%clk 0:02:51]}  d5 {[%clk 0:02:56]} 4. exd5 {[%clk 0:02:51]}  Qxd5 {[%clk 0:02:56]} 5. Nf3 {[%clk 0:02:51]}  e5 {[%clk 0:02:56]} 6. c4 {[%clk 0:02:46]}  bxc3 {[%clk 0:02:46]} 7. Nxc3 {[%clk 0:02:45]}  Qd8 {[%clk 0:02:30]} 8. Nxe5 {[%clk 0:02:43]}  Bd6 {[%clk 0:02:28]} 9. Qa4+ {[%clk 0:02:23]}  Nd7 {[%clk 0:02:09]} 10. Nc4 {[%clk 0:02:22]}  Qe7+ {[%clk 0:01:44]} 11. Be2 {[%clk 0:02:18]}  Nf6 {[%clk 0:01:45]} 12. Nxd6+ {[%clk 0:01:55]}  Qxd6 {[%clk 0:01:46]} 13. O-O {[%clk 0:01:54]}  O-O {[%clk 0:01:44]} 14. Qb4 {[%clk 0:01:55]}  Qc7 {[%clk 0:01:10]} 15. d3 {[%clk 0:01:48]}  Nb6 {[%clk 0:01:09]} 16. Bf4 {[%clk 0:01:47]}  Qd8 {[%clk 0:01:04]} 17. Bg5 {[%clk 0:01:43]}  h6 {[%clk 0:00:56]} 18. Bh4 {[%clk 0:01:43]}  Nbd5 {[%clk 0:00:51]} 19. Nxd5 {[%clk 0:01:39]}  Qxd5 {[%clk 0:00:52]} 20. Bxf6 {[%clk 0:01:39]}  gxf6 {[%clk 0:00:52]} 21. Bf3 {[%clk 0:01:39]}  Qxd3 {[%clk 0:00:49]} 22. Rad1 {[%clk 0:01:36]}  Qa6 {[%clk 0:00:40]} 23. Rd6 {[%clk 0:01:30]} 1-0


[Site "https://www.chess.com"]

[Event "Titled Tuesday Blitz February 15 Early 2022"]
[White "Tanenbaum, Zachary"]
[Black "Devaev, Alexander"]
[WhiteFideId "2060850"]
[BlackFideId "4169395"]
[WhiteElo "2168"]
[BlackElo "2185"]
[Result "1-0"]
[Round "09"]
[TimeControl "180+1"]
[Date "2022.02.15"]
[WhiteClock "0:00:39"]
[BlackClock "0:00:22"]

1. e4 {[%clk 0:03:00]}  c6 {[%clk 0:02:59]} 2. d4 {[%clk 0:03:00]}  d5 {[%clk 0:03:00]} 3. exd5 {[%clk 0:03:01]}  cxd5 {[%clk 0:03:01]} 4. Bd3 {[%clk 0:03:01]}  Nc6 {[%clk 0:03:01]} 5. c3 {[%clk 0:03:02]}  Nf6 {[%clk 0:02:55]} 6. Bf4 {[%clk 0:03:02]}  g6 {[%clk 0:02:55]} 7. Nf3 {[%clk 0:03:02]}  Bf5 {[%clk 0:02:56]} 8. Bxf5 {[%clk 0:03:01]}  gxf5 {[%clk 0:02:56]} 9. O-O {[%clk 0:03:02]}  e6 {[%clk 0:02:57]} 10. Ne5 {[%clk 0:03:03]}  Rc8 {[%clk 0:02:43]} 11. Nd2 {[%clk 0:03:02]}  Bd6 {[%clk 0:02:34]} 12. Re1 {[%clk 0:03:00]}  Qc7 {[%clk 0:02:26]} 13. c4 {[%clk 0:02:08]}  Nxd4 {[%clk 0:02:13]} 14. cxd5 {[%clk 0:02:08]}  Nxd5 {[%clk 0:02:13]} 15. Ndc4 {[%clk 0:01:51]}  Nxf4 {[%clk 0:01:18]} 16. Qxd4 {[%clk 0:01:50]}  Bxe5 {[%clk 0:00:49]} 17. Nxe5 {[%clk 0:01:51]}  Nd5 {[%clk 0:00:48]} 18. Ng4 {[%clk 0:00:40]}  O-O {[%clk 0:00:22]} 19. Nh6# {[%clk 0:00:39]} 1-0


[Site "https://www.chess.com"]

[Event "Titled Tuesday Blitz February 15 Early 2022"]
[White "Ter-Sahakyan, Samvel"]
[Black "Poormosavi, Seyed Kian"]
[WhiteFideId "13302531"]
[BlackFideId "12585807"]
[WhiteElo "2592"]
[BlackElo "2116"]
[Result "1/2-1/2"]
[Round "09"]
[TimeControl "180+1"]
[Date "2022.02.15"]
[WhiteClock "0:00:42"]
[BlackClock "0:00:39"]

1. d4 {[%clk 0:03:00]}  Nf6 {[%clk 0:02:56]} 2. Bg5 {[%clk 0:02:57]}  e6 {[%clk 0:02:53]} 3. e4 {[%clk 0:02:55]}  h6 {[%clk 0:02:53]} 4. Bxf6 {[%clk 0:02:55]}  Qxf6 {[%clk 0:02:53]} 5. Nc3 {[%clk 0:02:55]}  b6 {[%clk 0:02:54]} 6. Qd2 {[%clk 0:02:52]}  Bb7 {[%clk 0:02:54]} 7. O-O-O {[%clk 0:02:51]}  Qd8 {[%clk 0:02:54]} 8. f4 {[%clk 0:02:49]}  Be7 {[%clk 0:02:54]} 9. Nf3 {[%clk 0:02:48]}  d6 {[%clk 0:02:54]} 10. g4 {[%clk 0:02:43]}  Nd7 {[%clk 0:02:49]} 11. Rg1 {[%clk 0:02:29]}  a6 {[%clk 0:02:46]} 12. Kb1 {[%clk 0:02:27]}  b5 {[%clk 0:02:45]} 13. Qe3 {[%clk 0:02:22]}  c5 {[%clk 0:02:36]} 14. d5 {[%clk 0:02:19]}  e5 {[%clk 0:02:26]} 15. f5 {[%clk 0:02:11]}  Bg5 {[%clk 0:02:21]} 16. Qf2 {[%clk 0:02:07]}  Qb6 {[%clk 0:02:13]} 17. h4 {[%clk 0:02:05]}  Be7 {[%clk 0:02:13]} 18. g5 {[%clk 0:02:00]}  hxg5 {[%clk 0:02:14]} 19. hxg5 {[%clk 0:02:00]}  c4 {[%clk 0:02:14]} 20. Qxb6 {[%clk 0:01:46]}  Nxb6 {[%clk 0:02:15]} 21. a3 {[%clk 0:01:47]}  O-O-O {[%clk 0:02:05]} 22. g6 {[%clk 0:01:46]}  f6 {[%clk 0:01:56]} 23. Bg2 {[%clk 0:01:42]}  Rh6 {[%clk 0:01:53]} 24. Rh1 {[%clk 0:01:42]}  Rdh8 {[%clk 0:01:53]} 25. Rxh6 {[%clk 0:01:41]}  Rxh6 {[%clk 0:01:54]} 26. Ne2 {[%clk 0:01:35]}  Nd7 {[%clk 0:01:52]} 27. Ng3 {[%clk 0:01:33]}  Kd8 {[%clk 0:01:46]} 28. Rh1 {[%clk 0:01:30]}  Rxh1+ {[%clk 0:01:44]} 29. Bxh1 {[%clk 0:01:31]}  Ke8 {[%clk 0:01:45]} 30. Nh2 {[%clk 0:01:30]}  Kf8 {[%clk 0:01:42]} 31. Ng4 {[%clk 0:01:30]}  Bd8 {[%clk 0:01:42]} 32. c3 {[%clk 0:01:20]}  Bb6 {[%clk 0:01:21]} 33. Bf3 {[%clk 0:01:19]}  Nc5 {[%clk 0:01:17]} 34. Be2 {[%clk 0:01:17]}  Bc8 {[%clk 0:01:01]} 35. Kc1 {[%clk 0:00:59]}  a5 {[%clk 0:00:54]} 36. Kd2 {[%clk 0:00:59]}  Ba6 {[%clk 0:00:50]} 37. Kc2 {[%clk 0:00:52]}  Nb3 {[%clk 0:00:44]} 38. Bf1 {[%clk 0:00:51]}  Na1+ {[%clk 0:00:37]} 39. Kb1 {[%clk 0:00:50]}  Nb3 {[%clk 0:00:38]} 40. Kc2 {[%clk 0:00:50]}  Na1+ {[%clk 0:00:39]} 41. Kd1 {[%clk 0:00:50]}  Nb3 {[%clk 0:00:39]} 42. Kc2 {[%clk 0:00:42]} 1/2-1/2


[Site "https://www.chess.com"]